[Event "*** Titled Tuesday 3|2 Blitz"]
[Site "Chess.com"]
[Date "2016.08.02"]
[Round "3"]
[White "eltenedor"]
[Black "the_drake"]
[Result "0-1"]
[WhiteElo "2029"]
[BlackElo "2116"]
[TimeControl "180+2"]
[EndTime "11:40:14 PDT"]
[Termination "the_drake won by resignation"]

1. c4 {[%clk 0:03:01.9]} 1... e5 {[%clk 0:03:00.4]} 2. g3 {[%clk 0:03:02.9]}
2... Nf6 {[%clk 0:03:00.9]} 3. Bg2 {[%clk 0:03:03.4]} 3... d5 {[%clk 0:03:01.8]}
4. cxd5 {[%clk 0:03:04.7]} 4... Nxd5 {[%clk 0:03:03.7]} 5. Nf3 {[%clk
0:03:05.3]} 5... Nc6 {[%clk 0:03:04]} 6. O-O {[%clk 0:03:05]} 6... Be7 {[%clk
0:03:04.7]} 7. d4 {[%clk 0:03:05.4]} 7... e4 {[%clk 0:03:05.2]} 8. Ne5 {[%clk
0:03:06]} 8... f5 {[%clk 0:03:05.9]} 9. Nxc6 {[%clk 0:03:06]} 9... bxc6 {[%clk
0:03:06.2]} 10. Qc2 {[%clk 0:03:07.4]} 10... Qd6 {[%clk 0:03:05]} 11. a3 {[%clk
0:02:32]} 11... O-O {[%clk 0:03:02.1]} 12. Nd2 {[%clk 0:02:29.9]} 12... Ba6
{[%clk 0:02:51.2]} 13. Nc4 {[%clk 0:02:29.3]} 13... Bxc4 {[%clk 0:02:51.3]} 14.
Qxc4 {[%clk 0:02:29.4]} 14... Kh8 {[%clk 0:02:52.6]} 15. e3 {[%clk 0:02:20.1]}
15... g5 {[%clk 0:02:47.5]} 16. f4 {[%clk 0:01:56.2]} 16... g4 {[%clk
0:02:45.1]} 17. Bd2 {[%clk 0:01:51.8]} 17... a5 {[%clk 0:02:44.1]} 18. Rac1
{[%clk 0:01:46.2]} 18... Rab8 {[%clk 0:02:37.3]} 19. Rc2 {[%clk 0:01:30.4]}
19... Rb5 {[%clk 0:02:33.9]} 20. Rb1 {[%clk 0:01:15.6]} 20... Rfb8 {[%clk
0:02:32.9]} 21. Bf1 {[%clk 0:00:44.1]} 21... Rb3 {[%clk 0:02:29.6]} 22. Kf2
{[%clk 0:00:43.8]} 22... Qh6 {[%clk 0:02:17]} 23. Qxc6 {[%clk 0:00:37.7]} 23...
Qxh2+ {[%clk 0:02:15.5]} 24. Bg2 {[%clk 0:00:38.4]} 24... Nf6 {[%clk 0:01:38.4]}
25. Rh1 {[%clk 0:00:33]} 25... R3b6 {[%clk 0:01:26.5]} 26. Rxh2 {[%clk
0:00:23.5]} 26... Rxc6 {[%clk 0:01:26.5]} 27. Rxc6 {[%clk 0:00:25.1]} 27... Rxb2
{[%clk 0:01:26.9]} 28. Ke2 {[%clk 0:00:21.4]} 28... Bd6 {[%clk 0:01:22.3]} 29.
Ra6 {[%clk 0:00:16]} 29... Nd5 {[%clk 0:01:22]} 30. Rxa5 {[%clk 0:00:14.8]}
30... Nc3+ {[%clk 0:01:22.6]} 31. Ke1 {[%clk 0:00:13.5]} 31... Rb1+ {[%clk
0:01:22.8]} 32. Kf2 {[%clk 0:00:14.6]} 32... Rb2 {[%clk 0:01:23.4]} 33. Ke1
{[%clk 0:00:11.2]} 33... Rb1+ {[%clk 0:01:17.8]} 34. Kf2 {[%clk 0:00:08]} 34...
Rb2 {[%clk 0:01:08.4]} 35. Ke1 {[%clk 0:00:08.6]} 35... Nb1 {[%clk 0:01:07.3]}
36. Bc1 {[%clk 0:00:07.5]} 36... Rc2 {[%clk 0:01:05.7]} 37. Kd1 {[%clk
0:00:08.3]} 37... Rf2 {[%clk 0:01:04.2]} 38. Rxf5 {[%clk 0:00:07.9]} 38... Nc3+
{[%clk 0:01:03.5]} 39. Ke1 {[%clk 0:00:07.3]} 39... Re2+ {[%clk 0:01:04.5]} 40.
Kf1 {[%clk 0:00:08.4]} 40... Rc2 {[%clk 0:01:05.2]} 41. Rf7 {[%clk 0:00:05.2]}
41... Rxc1+ {[%clk 0:01:04.4]} 42. Kf2 {[%clk 0:00:06.4]} 42... Rc2+ {[%clk
0:01:01.4]} 43. Kg1 {[%clk 0:00:05.1]} 43... Ne2+ {[%clk 0:00:59.7]} 44. Kf2
{[%clk 0:00:04]} 44... Nxf4+ {[%clk 0:00:56.5]} 45. Kf1 {[%clk 0:00:04.5]} 45...
Rc1+ {[%clk 0:00:50.1]} 46. Kf2 {[%clk 0:00:03.1]} 46... Nd3+ {[%clk 0:00:45.5]}
47. Ke2 {[%clk 0:00:02.5]} 47... Rc2+ {[%clk 0:00:45]} 48. Kd1 {[%clk
0:00:02.8]} 48... Rf2 {[%clk 0:00:18.5]} 49. Rhxh7+ {[%clk 0:00:04.7]} 49... Kg8
{[%clk 0:00:19.6]} 50. Rxf2 {[%clk 0:00:04.3]} 50... Nxf2+ {[%clk 0:00:19.7]}
51. Ke2 {[%clk 0:00:06.2]} 51... Kxh7 {[%clk 0:00:21]} 52. Kxf2 {[%clk
0:00:07.3]} 52... Kg6 {[%clk 0:00:22.9]} 53. Bxe4+ {[%clk 0:00:08.4]} 53... Kg5
{[%clk 0:00:24.8]} 54. Bd3 {[%clk 0:00:09.7]} 54... Bxa3 {[%clk 0:00:26.7]} 55.
e4 {[%clk 0:00:10.6]} 55... Bd6 {[%clk 0:00:28.6]} 56. e5 {[%clk 0:00:11.6]}
56... Be7 {[%clk 0:00:30.5]} 57. Be4 {[%clk 0:00:12]} 57... Bd8 {[%clk
0:00:32.4]} 58. d5 {[%clk 0:00:12.2]} 58... Be7 {[%clk 0:00:34.3]} 59. e6 {[%clk
0:00:12.3]} 59... Bc5+ {[%clk 0:00:36.2]} 60. Kg2 {[%clk 0:00:12.8]} 60... Bd6
{[%clk 0:00:38.1]} 61. Bd3 {[%clk 0:00:13.7]} 61... Bc5 {[%clk 0:00:39.2]} 62.
Be2 {[%clk 0:00:13.4]} 62... Bd6 {[%clk 0:00:40.1]} 63. Bd3 {[%clk 0:00:14.2]}
63... Be7 {[%clk 0:00:41.3]} 64. Be4 {[%clk 0:00:14.9]} 64... Bd6 {[%clk
0:00:43.2]} 65. Kf2 {[%clk 0:00:15.9]} 65... Bc5+ {[%clk 0:00:44]} 66. Ke2
{[%clk 0:00:16.3]} 66... Bd6 {[%clk 0:00:45.9]} 67. Kf2 {[%clk 0:00:14.2]} 67...
Kf6 {[%clk 0:00:45.3]} 68. Bd3 {[%clk 0:00:13.6]} 68... Ke5 {[%clk 0:00:45.8]}
69. Be2 {[%clk 0:00:14.5]} 69... Kxd5 {[%clk 0:00:46.8]} 70. Bxg4 {[%clk
0:00:15.6]} 70... Ke5 {[%clk 0:00:47.7]} 71. Kf3 {[%clk 0:00:16]} 71... Kf6
{[%clk 0:00:48.3]} 72. Bh3 {[%clk 0:00:16.2]} 72... Kg5 {[%clk 0:00:48.2]} 73.
Bf1 {[%clk 0:00:15]} 73... Be7 {[%clk 0:00:49.2]} 74. Bc4 {[%clk 0:00:15.6]}
74... Bd6 {[%clk 0:00:50]} 75. g4 {[%clk 0:00:15.7]} 75... Be7 {[%clk
0:00:49.8]} 76. Bd3 {[%clk 0:00:16.5]} 76... Bd6 {[%clk 0:00:50.9]} 77. Bf5
{[%clk 0:00:17.8]} 77... Be7 {[%clk 0:00:50.2]} 78. Ke4 {[%clk 0:00:19]} 78...
c5 {[%clk 0:00:50.5]} 79. Kd5 {[%clk 0:00:19.8]} 79... Kf6 {[%clk 0:00:51.1]}
80. Kc6 {[%clk 0:00:19.6]} 80... c4 {[%clk 0:00:51.7]} 81. Kd7 {[%clk
0:00:20.6]} 81... Bb4 {[%clk 0:00:50.9]} 82. e7 {[%clk 0:00:19.5]} 82... Bxe7
{[%clk 0:00:50.8]} 83. g5+ {[%clk 0:00:20.5]} 83... Kxf5 {[%clk 0:00:48.5]} 84.
Kxe7 {[%clk 0:00:15.9]} 84... Kxg5 {[%clk 0:00:49.5]} 0-1

[Event "*** Titled Tuesday 3|2 Blitz"]
[Site "Chess.com"]
[Date "2016.08.02"]
[Round "3"]
[White "HansCoolNiemann"]
[Black "josiwales"]
[Result "0-1"]
[WhiteElo "2298"]
[BlackElo "2169"]
[TimeControl "180+2"]
[EndTime "11:40:37 PDT"]
[Termination "josiwales won by checkmate"]

1. b3 {[%clk 0:02:57.4]} 1... e5 {[%clk 0:02:55.2]} 2. Bb2 {[%clk 0:02:57.5]}
2... Nc6 {[%clk 0:02:54.9]} 3. e3 {[%clk 0:02:58.5]} 3... d6 {[%clk 0:02:52.9]}
4. Nf3 {[%clk 0:02:56.2]} 4... g6 {[%clk 0:02:53.9]} 5. c4 {[%clk 0:02:52.5]}
5... Bg7 {[%clk 0:02:53.7]} 6. Be2 {[%clk 0:02:53.4]} 6... Nge7 {[%clk
0:02:54.5]} 7. O-O {[%clk 0:02:53]} 7... O-O {[%clk 0:02:55.4]} 8. d4 {[%clk
0:02:54]} 8... e4 {[%clk 0:02:55.9]} 9. Nfd2 {[%clk 0:02:54.4]} 9... f5 {[%clk
0:02:56.5]} 10. Nc3 {[%clk 0:02:55]} 10... Kh8 {[%clk 0:02:55.1]} 11. f4 {[%clk
0:02:50.8]} 11... a6 {[%clk 0:02:48.3]} 12. a3 {[%clk 0:02:45.6]} 12... b6
{[%clk 0:02:49.3]} 13. b4 {[%clk 0:02:46.4]} 13... Bb7 {[%clk 0:02:50.2]} 14.
Nb3 {[%clk 0:02:47.1]} 14... a5 {[%clk 0:02:48.8]} 15. b5 {[%clk 0:02:47.6]}
15... Nb8 {[%clk 0:02:49.7]} 16. a4 {[%clk 0:02:45.4]} 16... d5 {[%clk
0:02:47.8]} 17. c5 {[%clk 0:02:45.7]} 17... c6 {[%clk 0:02:39.8]} 18. cxb6
{[%clk 0:02:45.1]} 18... Qxb6 {[%clk 0:02:40.4]} 19. Ba3 {[%clk 0:02:45.9]}
19... Re8 {[%clk 0:02:37.7]} 20. Rb1 {[%clk 0:02:42.3]} 20... Nd7 {[%clk
0:02:30.3]} 21. Nc5 {[%clk 0:02:36.6]} 21... Nxc5 {[%clk 0:02:29.5]} 22. Bxc5
{[%clk 0:02:35.7]} 22... Qc7 {[%clk 0:02:30.1]} 23. Qb3 {[%clk 0:02:36.7]} 23...
Rab8 {[%clk 0:02:27.8]} 24. Rfc1 {[%clk 0:02:37.1]} 24... Qd7 {[%clk 0:02:27]}
25. bxc6 {[%clk 0:02:26]} 25... Nxc6 {[%clk 0:02:26.2]} 26. Nb5 {[%clk
0:02:25.9]} 26... Ba6 {[%clk 0:02:21.2]} 27. Qc3 {[%clk 0:02:25.4]} 27... Rec8
{[%clk 0:02:19.7]} 28. Qd2 {[%clk 0:02:19.8]} 28... h6 {[%clk 0:02:04.1]} 29.
Nd6 {[%clk 0:02:15.5]} 29... Bxe2 {[%clk 0:01:49.7]} 30. Nxc8 {[%clk 0:02:12.9]}
30... Rxb1 {[%clk 0:01:29.8]} 31. Rxb1 {[%clk 0:02:12.7]} 31... Bd3 {[%clk
0:01:31]} 32. Nb6 {[%clk 0:02:13]} 32... Qd8 {[%clk 0:01:32.1]} 33. Rb3 {[%clk
0:02:13]} 33... g5 {[%clk 0:01:31.1]} 34. Rxd3 {[%clk 0:02:08]} 34... exd3
{[%clk 0:01:28.8]} 35. Qxd3 {[%clk 0:02:09.9]} 35... gxf4 {[%clk 0:01:30]} 36.
exf4 {[%clk 0:02:09.6]} 36... Qe8 {[%clk 0:01:29.4]} 37. Kf2 {[%clk 0:02:07.6]}
37... Qh5 {[%clk 0:01:26.1]} 38. h3 {[%clk 0:02:01.5]} 38... Qh4+ {[%clk
0:01:25.7]} 39. Qg3 {[%clk 0:01:13.3]} 39... Qf6 {[%clk 0:01:19.6]} 40. Nd7
{[%clk 0:01:00]} 40... Qe6 {[%clk 0:01:12.4]} 41. Ne5 {[%clk 0:01:01]} 41...
Nxe5 {[%clk 0:01:13.1]} 42. fxe5 {[%clk 0:01:01.2]} 42... Qc6 {[%clk 0:01:07.3]}
43. Qb3 {[%clk 0:01:00.4]} 43... Bxe5 {[%clk 0:01:05.1]} 44. Qe3 {[%clk
0:00:49.1]} 44... Bg7 {[%clk 0:01:00.2]} 45. Qf3 {[%clk 0:00:41.5]} 45... Qxa4
{[%clk 0:00:55.3]} 46. Qxd5 {[%clk 0:00:40.3]} 46... Qc2+ {[%clk 0:00:56]} 47.
Kg3 {[%clk 0:00:39.5]} 47... Qd3+ {[%clk 0:00:49.5]} 48. Kh2 {[%clk 0:00:37.9]}
48... Qf1 {[%clk 0:00:31]} 49. Qd6 {[%clk 0:00:27.6]} 49... a4 {[%clk
0:00:26.2]} 50. Qg3 {[%clk 0:00:22]} 50... Qe2 {[%clk 0:00:20.2]} 51. Qf4 {[%clk
0:00:14.8]} 51... Qe4 {[%clk 0:00:10.8]} 52. Kg3 {[%clk 0:00:11.7]} 52... Qd3+
{[%clk 0:00:10.5]} 53. Qf3 {[%clk 0:00:12.7]} 53... f4+ {[%clk 0:00:06.9]} 54.
Kxf4 {[%clk 0:00:12.2]} 54... Qg6 {[%clk 0:00:08]} 55. Qg4 {[%clk 0:00:12.8]}
55... Qf6+ {[%clk 0:00:08.5]} 56. Qf5 {[%clk 0:00:13.9]} 56... Qh4+ {[%clk
0:00:09.2]} 57. g4 {[%clk 0:00:14.3]} 57... Qf2+ {[%clk 0:00:09.9]} 58. Ke4
{[%clk 0:00:15.3]} 58... Qc2+ {[%clk 0:00:10.8]} 59. Kd5 {[%clk 0:00:15.7]}
59... Qb3+ {[%clk 0:00:12.4]} 60. Kc6 {[%clk 0:00:16.5]} 60... a3 {[%clk
0:00:11.1]} 61. Qc8+ {[%clk 0:00:13.5]} 61... Kh7 {[%clk 0:00:12.2]} 62. Qf5+
{[%clk 0:00:14.9]} 62... Kh8 {[%clk 0:00:13.6]} 63. Qc8+ {[%clk 0:00:16.5]}
63... Kh7 {[%clk 0:00:14.8]} 64. Qa6 {[%clk 0:00:18.1]} 64... Qe6+ {[%clk
0:00:14.7]} 65. Bd6 {[%clk 0:00:17.3]} 65... Qe4+ {[%clk 0:00:14.5]} 66. d5
{[%clk 0:00:17.7]} 66... Qc2+ {[%clk 0:00:12.8]} 67. Bc5 {[%clk 0:00:16.4]}
67... a2 {[%clk 0:00:10.6]} 68. d6 {[%clk 0:00:15.8]} 68... a1=Q {[%clk
0:00:08.4]} 69. Qxa1 {[%clk 0:00:16.5]} 69... Bxa1 {[%clk 0:00:09.7]} 70. d7
{[%clk 0:00:18.4]} 70... Bf6 {[%clk 0:00:10.8]} 71. Kd6 {[%clk 0:00:18.6]} 71...
Bd8 {[%clk 0:00:11.4]} 72. Bd4 {[%clk 0:00:17.2]} 72... Qg6+ {[%clk 0:00:11.8]}
73. Kd5 {[%clk 0:00:17.5]} 73... Qf7+ {[%clk 0:00:13]} 74. Kd6 {[%clk
0:00:18.4]} 74... Qe7+ {[%clk 0:00:14.2]} 75. Kc6 {[%clk 0:00:20.1]} 75... Qe6+
{[%clk 0:00:15.4]} 76. Kc5 {[%clk 0:00:21.6]} 76... Qxd7 {[%clk 0:00:16.5]} 77.
Be5 {[%clk 0:00:22.3]} 77... Be7+ {[%clk 0:00:17.4]} 78. Kc4 {[%clk 0:00:23.6]}
78... Qe6+ {[%clk 0:00:18.4]} 79. Kd4 {[%clk 0:00:25]} 79... Bf6 {[%clk
0:00:20.3]} 80. Bxf6 {[%clk 0:00:25.3]} 80... Qxf6+ {[%clk 0:00:22.2]} 81. Ke4
{[%clk 0:00:27.1]} 81... Qh4 {[%clk 0:00:23.6]} 82. Kf4 {[%clk 0:00:28.3]} 82...
Qxh3 {[%clk 0:00:24.4]} 83. g5 {[%clk 0:00:29.9]} 83... Qh4+ {[%clk 0:00:25.7]}
84. Kf5 {[%clk 0:00:31.1]} 84... Qxg5+ {[%clk 0:00:27.6]} 85. Ke4 {[%clk
0:00:32.4]} 85... h5 {[%clk 0:00:28.9]} 86. Kf3 {[%clk 0:00:34.3]} 86... h4
{[%clk 0:00:30.4]} 87. Kf2 {[%clk 0:00:36.2]} 87... h3 {[%clk 0:00:31.7]} 88.
Kf3 {[%clk 0:00:38.1]} 88... h2 {[%clk 0:00:32.3]} 89. Kf2 {[%clk 0:00:40]}
89... h1=Q {[%clk 0:00:32.3]} 90. Ke2 {[%clk 0:00:41.9]} 90... Qhg2+ {[%clk
0:00:32.3]} 91. Kd3 {[%clk 0:00:42.9]} 91... Q5d5+ {[%clk 0:00:32.8]} 92. Ke3
{[%clk 0:00:43.8]} 92... Qgf3# {[%clk 0:00:33.4]} 0-1

[Event "*** Titled Tuesday 3|2 Blitz"]
[Site "Chess.com"]
[Date "2016.08.02"]
[Round "3"]
[White "Chesstrainer1"]
[Black "Dr-Bassem"]
[Result "0-1"]
[WhiteElo "2427"]
[BlackElo "2630"]
[TimeControl "180+2"]
[EndTime "11:40:52 PDT"]
[Termination "Dr-Bassem won by resignation"]

1. Nf3 {[%clk 0:03:01]} 1... f5 {[%clk 0:03:00]} 2. d3 {[%clk 0:03:01.6]} 2...
Nc6 {[%clk 0:02:56.7]} 3. d4 {[%clk 0:03:02.1]} 3... Nf6 {[%clk 0:02:52]} 4. d5
{[%clk 0:02:54.8]} 4... Nb8 {[%clk 0:02:52.3]} 5. c4 {[%clk 0:02:55.8]} 5... g6
{[%clk 0:02:34.5]} 6. Nc3 {[%clk 0:02:52.6]} 6... Bg7 {[%clk 0:02:35.1]} 7. g3
{[%clk 0:02:49.2]} 7... O-O {[%clk 0:02:35.5]} 8. Bg2 {[%clk 0:02:50.7]} 8...
Qe8 {[%clk 0:02:33]} 9. O-O {[%clk 0:02:50.4]} 9... e5 {[%clk 0:02:33.4]} 10.
dxe6 {[%clk 0:02:51.1]} 10... dxe6 {[%clk 0:02:35.3]} 11. Bf4 {[%clk 0:02:51.7]}
11... Na6 {[%clk 0:02:35.1]} 12. Be5 {[%clk 0:02:45.8]} 12... Bd7 {[%clk
0:02:34.3]} 13. a3 {[%clk 0:02:32.5]} 13... Rd8 {[%clk 0:02:18.7]} 14. Qc2
{[%clk 0:02:31.9]} 14... Bc8 {[%clk 0:01:54.1]} 15. b4 {[%clk 0:02:29.9]} 15...
Nd7 {[%clk 0:01:54.3]} 16. Bxg7 {[%clk 0:02:28.1]} 16... Kxg7 {[%clk 0:01:56.2]}
17. Nb5 {[%clk 0:02:27.3]} 17... e5 {[%clk 0:01:49.6]} 18. Nxa7 {[%clk
0:02:26.7]} 18... e4 {[%clk 0:01:47.6]} 19. Qc3+ {[%clk 0:02:18]} 19... Kg8
{[%clk 0:01:41.5]} 20. Nd2 {[%clk 0:02:12.2]} 20... Qe5 {[%clk 0:01:37.6]} 21.
Rfc1 {[%clk 0:02:05.1]} 21... Qxc3 {[%clk 0:01:36.1]} 22. Rxc3 {[%clk
0:02:06.7]} 22... Ne5 {[%clk 0:01:37.7]} 23. Nb3 {[%clk 0:02:01.3]} 23... Be6
{[%clk 0:01:36.8]} 24. b5 {[%clk 0:01:56.4]} 24... Nb8 {[%clk 0:01:24.6]} 25.
Rac1 {[%clk 0:01:49.8]} 25... Nbd7 {[%clk 0:01:13.4]} 26. f4 {[%clk 0:01:34.9]}
26... exf3 {[%clk 0:01:02.3]} 27. exf3 {[%clk 0:01:34.6]} 27... Ra8 {[%clk
0:01:02.4]} 28. b6 {[%clk 0:01:31.2]} 28... Nxb6 {[%clk 0:00:59.7]} 29. Nb5
{[%clk 0:01:32.1]} 29... Bxc4 {[%clk 0:00:58.4]} 30. N3d4 {[%clk 0:01:22.7]}
30... Bxb5 {[%clk 0:00:49.7]} 31. Nxb5 {[%clk 0:01:22.9]} 31... c6 {[%clk
0:00:50.9]} 32. Nd6 {[%clk 0:01:23.7]} 32... Nd5 {[%clk 0:00:45.3]} 33. Rb3
{[%clk 0:01:20.5]} 33... f4 {[%clk 0:00:41.8]} 34. Re1 {[%clk 0:01:10.9]} 34...
Nd7 {[%clk 0:00:26.6]} 35. Nxb7 {[%clk 0:01:02.9]} 35... Rfb8 {[%clk 0:00:26]}
36. Bh3 {[%clk 0:01:00.8]} 36... Nf8 {[%clk 0:00:19]} 37. Reb1 {[%clk
0:00:52.8]} 37... Ra7 {[%clk 0:00:17.7]} 38. Nc5 {[%clk 0:00:53.8]} 38... Rba8
{[%clk 0:00:17.5]} 39. Rb8 {[%clk 0:00:50.1]} 39... Rxb8 {[%clk 0:00:17.5]} 40.
Rxb8 {[%clk 0:00:50.1]} 40... Kg7 {[%clk 0:00:18.3]} 41. Rb3 {[%clk 0:00:47.6]}
41... Kf6 {[%clk 0:00:18.2]} 42. Nd3 {[%clk 0:00:44.4]} 42... g5 {[%clk
0:00:18]} 43. gxf4 {[%clk 0:00:42.6]} 43... gxf4 {[%clk 0:00:19.9]} 44. Kf2
{[%clk 0:00:41.6]} 44... Ng6 {[%clk 0:00:20.6]} 45. Nc5 {[%clk 0:00:38.9]} 45...
Ne5 {[%clk 0:00:20.4]} 46. Ne4+ {[%clk 0:00:39.9]} 46... Ke7 {[%clk 0:00:21.5]}
47. Ke2 {[%clk 0:00:37.1]} 47... Nc4 {[%clk 0:00:22.2]} 48. Bf5 {[%clk
0:00:35.6]} 48... h6 {[%clk 0:00:22.8]} 49. a4 {[%clk 0:00:33.6]} 49... Ncb6
{[%clk 0:00:22]} 50. Nc5 {[%clk 0:00:34.6]} 50... Nxa4 {[%clk 0:00:22.3]} 51.
Nxa4 {[%clk 0:00:29.3]} 51... Rxa4 {[%clk 0:00:21.9]} 52. h4 {[%clk 0:00:26]}
52... Kd6 {[%clk 0:00:20.2]} 53. Be4 {[%clk 0:00:24.5]} 53... Ke5 {[%clk
0:00:18]} 54. Kd3 {[%clk 0:00:20.6]} 54... Nb4+ {[%clk 0:00:17.2]} 55. Kc3
{[%clk 0:00:20.2]} 55... Nd5+ {[%clk 0:00:14.4]} 56. Kd3 {[%clk 0:00:21.5]}
56... Ra1 {[%clk 0:00:14.9]} 57. Rb8 {[%clk 0:00:21.5]} 57... Rd1+ {[%clk
0:00:13.3]} 58. Kc2 {[%clk 0:00:19.3]} 58... Rh1 {[%clk 0:00:13.5]} 59. Re8+
{[%clk 0:00:19.4]} 59... Kd4 {[%clk 0:00:14.5]} 60. Bxd5 {[%clk 0:00:10]} 60...
cxd5 {[%clk 0:00:15]} 61. Rf8 {[%clk 0:00:11]} 61... Rh2+ {[%clk 0:00:15.2]} 62.
Kd1 {[%clk 0:00:11.2]} 62... Ke3 {[%clk 0:00:16.2]} 63. Re8+ {[%clk 0:00:08.5]}
63... Kxf3 {[%clk 0:00:17]} 64. Re5 {[%clk 0:00:09.2]} 64... d4 {[%clk
0:00:17.7]} 65. h5 {[%clk 0:00:10.8]} 65... d3 {[%clk 0:00:15.9]} 66. Rd5 {[%clk
0:00:09.2]} 66... Ke4 {[%clk 0:00:16.7]} 67. Rd6 {[%clk 0:00:07.8]} 67... f3
{[%clk 0:00:17.6]} 68. Re6+ {[%clk 0:00:06]} 68... Kd5 {[%clk 0:00:17.7]} 69.
Rxh6 {[%clk 0:00:06.7]} 69... f2 {[%clk 0:00:18.2]} 0-1

[Event "*** Titled Tuesday 3|2 Blitz"]
[Site "Chess.com"]
[Date "2016.08.02"]
[Round "3"]
[White "Zlatan56"]
[Black "ruifeng"]
[Result "1-0"]
[WhiteElo "2596"]
[BlackElo "2323"]
[TimeControl "180+2"]
[EndTime "11:41:12 PDT"]
[Termination "Zlatan56 won by resignation"]

1. Nf3 {[%clk 0:03:01.9]} 1... g6 {[%clk 0:03:00.5]} 2. g3 {[%clk 0:03:00.7]}
2... Bg7 {[%clk 0:03:01.6]} 3. Bg2 {[%clk 0:03:01.9]} 3... e5 {[%clk 0:03:02.4]}
4. O-O {[%clk 0:03:01.1]} 4... Ne7 {[%clk 0:03:02.6]} 5. d4 {[%clk 0:02:57.1]}
5... exd4 {[%clk 0:03:01]} 6. Nxd4 {[%clk 0:02:57.5]} 6... Nbc6 {[%clk
0:03:02.3]} 7. Nxc6 {[%clk 0:02:55.8]} 7... Nxc6 {[%clk 0:03:03.4]} 8. Nc3
{[%clk 0:02:55.6]} 8... O-O {[%clk 0:03:04.2]} 9. Nd5 {[%clk 0:02:56.4]} 9... d6
{[%clk 0:03:01.8]} 10. c3 {[%clk 0:02:56.4]} 10... Ne5 {[%clk 0:02:42.1]} 11. h3
{[%clk 0:02:46.6]} 11... c6 {[%clk 0:02:43.2]} 12. Nf4 {[%clk 0:02:47.5]} 12...
d5 {[%clk 0:02:41.9]} 13. b3 {[%clk 0:02:38.3]} 13... Bf5 {[%clk 0:02:41.8]} 14.
Be3 {[%clk 0:02:38.1]} 14... Qe7 {[%clk 0:02:36.5]} 15. Bd4 {[%clk 0:02:37.2]}
15... Rfd8 {[%clk 0:02:34.5]} 16. Rc1 {[%clk 0:02:29.9]} 16... Be4 {[%clk
0:02:34.8]} 17. Bxe4 {[%clk 0:02:23]} 17... dxe4 {[%clk 0:02:35.8]} 18. Qc2
{[%clk 0:02:24.5]} 18... c5 {[%clk 0:02:34.6]} 19. Bxe5 {[%clk 0:02:21.6]} 19...
Qxe5 {[%clk 0:02:35]} 20. Rcd1 {[%clk 0:02:17.7]} 20... h5 {[%clk 0:02:28.3]}
21. e3 {[%clk 0:02:01.2]} 21... h4 {[%clk 0:01:39.3]} 22. g4 {[%clk 0:02:01.5]}
22... Bh6 {[%clk 0:01:40.5]} 23. Ng2 {[%clk 0:01:55]} 23... Bg5 {[%clk
0:01:40.8]} 24. c4 {[%clk 0:01:55.2]} 24... Kg7 {[%clk 0:01:39.9]} 25. Qb1
{[%clk 0:01:36.8]} 25... Kh6 {[%clk 0:01:37.6]} 26. Rxd8 {[%clk 0:01:24.1]}
26... Rxd8 {[%clk 0:01:38]} 27. Rd1 {[%clk 0:01:26]} 27... Rxd1+ {[%clk
0:01:19.2]} 28. Qxd1 {[%clk 0:01:27.9]} 28... Qe6 {[%clk 0:01:19.5]} 29. Nf4
{[%clk 0:01:13.6]} 29... Bxf4 {[%clk 0:01:19.8]} 30. exf4 {[%clk 0:01:15.5]}
30... Kg7 {[%clk 0:01:15.6]} 31. Qd2 {[%clk 0:01:14.1]} 31... Qf6 {[%clk
0:01:12.7]} 32. Kg2 {[%clk 0:01:07.5]} 32... Qd4 {[%clk 0:01:13.3]} 33. Qe2
{[%clk 0:00:55.4]} 33... Kf8 {[%clk 0:01:10.4]} 34. f5 {[%clk 0:00:45.6]} 34...
gxf5 {[%clk 0:01:02.9]} 35. gxf5 {[%clk 0:00:47.5]} 35... Qe5 {[%clk 0:00:53.8]}
36. Qh5 {[%clk 0:00:46]} 36... Ke8 {[%clk 0:00:44.1]} 37. Qxh4 {[%clk
0:00:44.6]} 37... Qxf5 {[%clk 0:00:45]} 38. Qg4 {[%clk 0:00:45.6]} 38... Qe5
{[%clk 0:00:37.6]} 39. Qc8+ {[%clk 0:00:45.7]} 39... Ke7 {[%clk 0:00:39]} 40.
Qxb7+ {[%clk 0:00:47.2]} 40... Kf6 {[%clk 0:00:38]} 41. Qc6+ {[%clk 0:00:48.1]}
41... Kg7 {[%clk 0:00:37.8]} 42. Qd5 {[%clk 0:00:46.5]} 42... Qf4 {[%clk
0:00:38.7]} 43. Qxc5 {[%clk 0:00:42.1]} 43... Qf3+ {[%clk 0:00:39.8]} 44. Kg1
{[%clk 0:00:41.4]} 44... Qxh3 {[%clk 0:00:36.5]} 45. Qd4+ {[%clk 0:00:40.7]}
45... Kf8 {[%clk 0:00:36.1]} 46. Qxe4 {[%clk 0:00:39.5]} 46... Qc3 {[%clk
0:00:37.2]} 47. Qa8+ {[%clk 0:00:29.7]} 47... Kg7 {[%clk 0:00:37.6]} 48. Qxa7
{[%clk 0:00:30.8]} 48... Qe1+ {[%clk 0:00:33.6]} 49. Kg2 {[%clk 0:00:31]} 49...
Qe4+ {[%clk 0:00:34.4]} 50. Kf1 {[%clk 0:00:32.1]} 50... Qb1+ {[%clk 0:00:30.8]}
51. Ke2 {[%clk 0:00:32.7]} 51... Qc2+ {[%clk 0:00:32]} 52. Ke3 {[%clk
0:00:33.2]} 52... Qc3+ {[%clk 0:00:32.3]} 53. Ke4 {[%clk 0:00:34.1]} 53... Qc2+
{[%clk 0:00:33.3]} 54. Kd5 {[%clk 0:00:34.5]} 54... Qf5+ {[%clk 0:00:34]} 55.
Kc6 {[%clk 0:00:35.1]} 55... Qe6+ {[%clk 0:00:33.9]} 56. Kb5 {[%clk 0:00:35.9]}
56... Qe5+ {[%clk 0:00:31.7]} 57. c5 {[%clk 0:00:35.2]} 57... Qe2+ {[%clk
0:00:32.6]} 58. Kb6 {[%clk 0:00:34]} 58... Qxf2 {[%clk 0:00:33.6]} 59. b4 {[%clk
0:00:33.5]} 59... Qd4 {[%clk 0:00:32.1]} 60. Qa3 {[%clk 0:00:31.1]} 60... f5
{[%clk 0:00:29.8]} 61. Qg3+ {[%clk 0:00:31.7]} 61... Kf7 {[%clk 0:00:24.8]} 62.
Qc7+ {[%clk 0:00:32]} 62... Kg8 {[%clk 0:00:18.5]} 63. Qc8+ {[%clk 0:00:29.1]}
63... Kg7 {[%clk 0:00:19.4]} 64. Qxf5 {[%clk 0:00:22.2]} 64... Qxb4+ {[%clk
0:00:20.4]} 65. Kc6 {[%clk 0:00:22.4]} 65... Qa4+ {[%clk 0:00:21.5]} 66. Kd6
{[%clk 0:00:23.5]} 66... Qxa2 {[%clk 0:00:20]} 67. Qe5+ {[%clk 0:00:22.8]} 67...
Kh7 {[%clk 0:00:12.9]} 68. Qe7+ {[%clk 0:00:22]} 68... Kh8 {[%clk 0:00:11.6]}
69. Qf6+ {[%clk 0:00:18.4]} 69... Kh7 {[%clk 0:00:11.9]} 70. Qf5+ {[%clk
0:00:19.4]} 70... Kh8 {[%clk 0:00:11.3]} 71. c6 {[%clk 0:00:19.4]} 71... Qa3+
{[%clk 0:00:11.8]} 72. Qc5 {[%clk 0:00:19.3]} 72... Qd3+ {[%clk 0:00:12.4]} 73.
Qd5 {[%clk 0:00:20.2]} 73... Qa3+ {[%clk 0:00:13.3]} 74. Kd7 {[%clk 0:00:21.3]}
74... Qa4 {[%clk 0:00:13.5]} 75. Qe5+ {[%clk 0:00:18]} 75... Kg8 {[%clk
0:00:13.6]} 76. Kd6 {[%clk 0:00:16.3]} 76... Qb4+ {[%clk 0:00:13.9]} 77. Kd7
{[%clk 0:00:13.8]} 77... Qa4 {[%clk 0:00:14.7]} 78. Qg5+ {[%clk 0:00:14.4]}
78... Kh8 {[%clk 0:00:14.4]} 79. Qf6+ {[%clk 0:00:15]} 79... Kg8 {[%clk
0:00:15.3]} 80. Kd8 {[%clk 0:00:14]} 80... Qa8+ {[%clk 0:00:14.7]} 81. Ke7
{[%clk 0:00:14.7]} 81... Qa7+ {[%clk 0:00:15.2]} 82. Kd6 {[%clk 0:00:15.9]}
82... Qa3+ {[%clk 0:00:15.3]} 83. Kd7 {[%clk 0:00:12.1]} 83... Qa4 {[%clk
0:00:16.4]} 84. Qe6+ {[%clk 0:00:11.7]} 84... Kh7 {[%clk 0:00:16.3]} 85. Qd5
{[%clk 0:00:12.6]} 85... Kh8 {[%clk 0:00:14.1]} 86. Kd6 {[%clk 0:00:12.3]} 86...
Qb4+ {[%clk 0:00:14.5]} 87. Qc5 {[%clk 0:00:12.7]} 87... Qd2+ {[%clk 0:00:14.3]}
88. Ke6 {[%clk 0:00:13.2]} 88... Qe2+ {[%clk 0:00:14.8]} 89. Qe5+ {[%clk
0:00:13.5]} 89... Qxe5+ {[%clk 0:00:15.5]} 90. Kxe5 {[%clk 0:00:15.4]} 1-0